Workbook

Sheet Tirage_poules
A1: N° | B1: NOMS | U1: Poule1 | W1: Poule2 | Y1: Poule3 | AA1: Poule4 | AC1: Poule5 | AE1: Poule6 | AG1: Poule7 | AI1: Poule8
A2: 1 | B2: A1 | D2: 31 | F2: 7 | H2: 24 | J2: 25 | L2: 17 | N2: 33 | P2: 43 | R2: 39 | U2: =IFERROR(VLOOKUP(D2,$A$2:$B$100,2,0),"") -> A31 | V2: =IFERROR(VLOOKUP(E2,$A$2:$B$100,2,0),"") ->  | W2: A7 | Y2: A24 | AA2: A25 | AC2: A17 | AE2: A33 | AG2: A43 | AI2: =IFERROR(VLOOKUP(R2,$A$2:$B$100,2,0),"") -> A39
A3: 2 | B3: A2 | D3: 44 | F3: 28 | H3: 19 | J3: 26 | L3: 42 | N3: 22 | P3: 38 | R3: 32 | U3: =IFERROR(VLOOKUP(D3,$A$2:$B$100,2,0),"") -> A44 | W3: A28 | Y3: A19 | AA3: A26 | AC3: A42 | AE3: A22 | AG3: A38 | AI3: A32
A4: 3 | B4: A3 | D4: 1 | F4: 35 | H4: 8 | J4: 9 | L4: 16 | N4: 50 | P4: 23 | R4: 41 | U4: A1 | W4: A35 | Y4: A8 | AA4: A9 | AC4: A16 | AE4: A50 | AG4: A23 | AI4: A41
A5: 4 | B5: A4 | D5: 11 | F5: 29 | H5: 37 | J5: 15 | L5: 13 | N5: 12 | P5: 27 | R5: 30 | U5: A11 | W5: A29 | Y5: A37 | AA5: A15 | AC5: A13 | AE5: A12 | AG5: A27 | AI5: A30
A6: 5 | B6: A5 | D6: 4 | F6: 5 | H6: 49 | J6: 46 | L6: 3 | N6: 52 | P6: 47 | R6: 34 | U6: A4 | W6: A5 | Y6: A49 | AA6: A46 | AC6: A3 | AE6: A52 | AG6: A47 | AI6: A34
A7: 6 | B7: A6 | D7: 6 | F7: 10 | H7: 40 | J7: 14 | L7: 45 | N7: 48 | P7: 20 | R7: 41 | U7: A6 | W7: A10 | Y7: A40 | AA7: A14 | AC7: A45 | AE7: A48 | AG7: A20 | AI7: A41
A8: 7 | B8: A7 | D8: 18 | F8: 36 | H8: 21 | J8: 2 | U8: A18 | W8: A36 | Y8: A21 | AA8: A2
A9: 8 | B9: A8
A10: 9 | B10: A9
A11: 10 | B11: A10
A12: 11 | B12: A11
A13: 12 | B13: A12
A14: 13 | B14: A13
A15: 14 | B15: A14
A16: 15 | B16: A15
A17: 16 | B17: A16
A18: 17 | B18: A17
A19: 18 | B19: A18
A20: 19 | B20: A19
A21: 20 | B21: A20
A22: 21 | B22: A21
A23: 22 | B23: A22
A24: 23 | B24: A23
A25: 24 | B25: A24
A26: 25 | B26: A25
A27: 26 | B27: A26
A28: 27 | B28: A27
A29: 28 | B29: A28
A30: 29 | B30: A29
A31: 30 | B31: A30
A32: 31 | B32: A31
A33: 32 | B33: A32
A34: 33 | B34: A33
A35: 34 | B35: A34
A36: 35 | B36: A35
A37: 36 | B37: A36
A38: 37 | B38: A37
A39: 38 | B39: A38
A40: 39 | B40: A39
A41: 40 | B41: A40
A42: 41 | B42: A41
A43: 42 | B43: A42
A44: 43 | B44: A43
A45: 44 | B45: A44
A46: 45 | B46: A45
A47: 46 | B47: A46
A48: 47 | B48: A47
A49: 48 | B49: A48
A50: 49 | B50: A49
A51: 50 | B51: A50
A52: 41 | B52: A51
A53: 52 | B53: A52

Sheet A LIRE Explications
A2: Sur la feuille Tirage_poules
A3: Remplir les cellules colonne "Noms"avec les noms et la colonne N° des numéros a partir de 1 ,et selon le nombre de joueurs ou équipes
A4: Ensuite cliquer sur le bouton Tirage et tous les tirages sont effectués
A5: Les différents boutons donnent accés directement a la feuille voulue
A6: Attention les boutons effacer sont à utiliser que si vous etes sur de vouloir tout supprimer
A8: Sur les feuilles de Poule
A9: Vous n'avez que les scores à noter exemple" 13 8 "
A10: Le calcul se fait automatiquement
A12: Sur la feuille Classement
A13: Les résultats s'inscrivent au fur et a mesure
A14: Pour avoir le classement ,vous cliquez sur le bouton "Classement"
A16: Sur toutes les feuilles vous avez un bouton "Retour tirage" qui vous renvoie sur la feuille Tirage_poules
A19: J'ai volontairement mis des N° ,des Noms, des scores pour montrer le fonctionnement et le classement.
A20: Il y a des trous dans les poules ,c'est normal il n'y a pas 64 joueurs
A21: Pour les joueurs qui n'ont pas d'adversaire j'ai attribué 13 au score de facon que le joueur soit classé normalement.
A22: Pour effacer ce que j'ai mis rien de plus facile ,les boutons effacer sont là pour cela

Sheet Poule 1 (hidden)
B1: Poule 1 | E1: Tirage | G1: NOM du joueur 1 | H1: Contre | I1: NOM du joueur 2 | J1: POINTS | L1: 1 | M1: 2 | N1: 3 | O1: 4 | P1: 5 | Q1: 6 | R1: 7 | S1: 8
A2: 1 | B2: =Tirage_poules!U2 -> A31 | E2: 1 | F2: 8 | G2: =IFERROR(VLOOKUP(E2,$A$2:$B$9,2,0),"") -> A31 | H2: >>>> | I2: =IFERROR(VLOOKUP(F2,$A$2:$B$9,2,0),"") ->  | J2: 13 | L2: =IF($J2=13,1,0) -> 1 | S2: =IF($K2=13,1,0) -> 0
A3: 2 | B3: =Tirage_poules!U3 -> A44 | E3: 2 | F3: 7 | G3: =IFERROR(VLOOKUP(E3,$A$2:$B$9,2,0),"") -> A44 | H3: >>>> | I3: =IFERROR(VLOOKUP(F3,$A$2:$B$9,2,0),"") -> A18 | J3: 11 | K3: 13 | M3: =IF($J3=13,1,0) -> 0 | R3: =IF($K3=13,1,0) -> 1
A4: 3 | B4: =Tirage_poules!U4 -> A1 | E4: 3 | F4: 6 | G4: A1 | H4: >>>> | I4: A6 | J4: 13 | K4: 8 | N4: =IF($J4=13,1,0) -> 1 | Q4: =IF($K4=13,1,0) -> 0
A5: 4 | B5: =Tirage_poules!U5 -> A11 | E5: 4 | F5: 5 | G5: A11 | H5: >>>> | I5: A4 | J5: 5 | K5: 13 | O5: =IF($J5=13,1,0) -> 0 | P5: =IF($K5=13,1,0) -> 1
A6: 5 | B6: =Tirage_poules!U6 -> A4 | E6: 1 | F6: 7 | G6: A31 | H6: >>>> | I6: A18 | J6: 13 | K6: 2 | L6: =IF($J6=13,1,0) -> 1 | R6: =IF($K6=13,1,0) -> 0
A7: 6 | B7: =Tirage_poules!U7 -> A6 | E7: 6 | F7: 8 | G7: A6 | H7: >>>> | J7: 13 | Q7: =IF($J7=13,1,0) -> 1 | S7: =IF($K7=13,1,0) -> 0
A8: 7 | B8: =Tirage_poules!U8 -> A18 | E8: 2 | F8: 5 | G8: A44 | H8: >>>> | I8: A4 | J8: 13 | K8: 9 | M8: =IF($J8=13,1,0) -> 1 | P8: =IF($K8=13,1,0) -> 0
A9: 8 | B9: =Tirage_poules!U9 ->  | E9: 3 | F9: 4 | G9: A1 | H9: >>>> | I9: A11 | J9: 1 | K9: 13 | N9: =IF($J9=13,1,0) -> 0 | O9: =IF($K9=13,1,0) -> 1
E10: 1 | F10: 6 | G10: A31 | H10: >>>> | I10: A6 | J10: 1 | K10: 13 | L10: =IF($J10=13,1,0) -> 0 | Q10: =IF($K10=13,1,0) -> 1
E11: 5 | F11: 7 | G11: A4 | H11: >>>> | I11: A18 | J11: 3 | K11: 13 | P11: =IF($J11=13,1,0) -> 0 | R11: =IF($K11=13,1,0) -> 1
E12: 4 | F12: 8 | G12: A11 | H12: >>>> | J12: 13 | O12: =IF($J12=13,1,0) -> 1 | S12: =IF($K12=13,1,0) -> 0
E13: 2 | F13: 3 | G13: A44 | H13: >>>> | I13: A1 | J13: 13 | K13: 6 | M13: =IF($J13=13,1,0) -> 1 | N13: =IF($K13=13,1,0) -> 0
E14: 1 | F14: 5 | G14: A31 | H14: >>>> | I14: A4 | J14: 10 | K14: 13 | L14: =IF($J14=13,1,0) -> 0 | P14: =IF($K14=13,1,0) -> 1
E15: 4 | F15: 6 | G15: A11 | H15: >>>> | I15: A6 | J15: 4 | K15: 13 | O15: =IF($J15=13,1,0) -> 0 | Q15: =IF($K15=13,1,0) -> 1
E16: 3 | F16: 7 | G16: A1 | H16: >>>> | I16: A18 | J16: 7 | K16: 13 | N16: =IF($J16=13,1,0) -> 0 | R16: =IF($K16=13,1,0) -> 1
E17: 2 | F17: 8 | G17: A44 | H17: >>>> | J17: 13 | M17: =IF($J17=13,1,0) -> 1 | S17: =IF($K17=13,1,0) -> 0
E18: 1 | F18: 4 | G18: A31 | H18: >>>> | I18: A11 | J18: 13 | K18: 10 | L18: =IF($J18=13,1,0) -> 1 | O18: =IF($K18=13,1,0) -> 0
E19: 3 | F19: 5 | G19: A1 | H19: >>>> | I19: A4 | J19: 5 | K19: 13 | N19: =IF($J19=13,1,0) -> 0 | P19: =IF($K19=13,1,0) -> 1
E20: 2 | F20: 6 | G20: A44 | H20: >>>> | I20: A6 | J20: 0 | K20: 13 | M20: =IF($J20=13,1,0) -> 0 | Q20: =IF($K20=13,1,0) -> 1
E21: 7 | F21: 8 | G21: A18 | H21: >>>> | J21: 13 | R21: =IF($J21=13,1,0) -> 1 | S21: =IF($K21=13,1,0) -> 0
E22: 1 | F22: 3 | G22: A31 | H22: >>>> | I22: A1 | J22: 13 | K22: 2 | L22: =IF($J22=13,1,0) -> 1 | N22: =IF($K22=13,1,0) -> 0
E23: 2 | F23: 4 | G23: A44 | H23: >>>> | I23: A11 | J23: 1 | K23: 13 | M23: =IF($J23=13,1,0) -> 0 | O23: =IF($K23=13,1,0) -> 1
E24: 5 | F24: 8 | G24: A4 | H24: >>>> | J24: 13 | P24: =IF($J24=13,1,0) -> 1 | S24: =IF($K24=13,1,0) -> 0
E25: 6 | F25: 7 | G25: A6 | H25: >>>> | I25: A18 | J25: 4 | K25: 13 | Q25: =IF($J25=13,1,0) -> 0 | R25: =IF($K25=13,1,0) -> 1
E26: 1 | F26: 2 | G26: A31 | H26: >>>> | I26: A44 | J26: 13 | K26: 8 | L26: =IF($J26=13,1,0) -> 1 | M26: =IF($K26=13,1,0) -> 0
E27: 3 | F27: 8 | G27: A1 | H27: >>>> | J27: 13 | N27: =IF($J27=13,1,0) -> 1 | S27: =IF($K27=13,1,0) -> 0
E28: 4 | F28: 7 | G28: A11 | H28: >>>> | I28: A18 | J28: 13 | K28: 6 | O28: =IF($J28=13,1,0) -> 1 | R28: =IF($K28=13,1,0) -> 0
E29: 5 | F29: 6 | G29: A4 | H29: >>>> | I29: A6 | J29: 10 | K29: 13 | P29: =IF($J29=13,1,0) -> 0 | Q29: =IF($K29=13,1,0) -> 1
J30: Total Points | L30: =SUM(L2:L29) -> 5 | M30: =SUM(M2:M29) -> 3 | N30: 2 | O30: 4 | P30: 4 | Q30: 5 | R30: 5 | S30: 0
J31: Diff points | L31: =(J2+J6+J10+J14+J18+J22+J26)-(K2+K6+K10+K14+K18+K22+K26) -> 28 | M31: =(J3+J8+J13+J17+J20+J23+K26)-(K3+K8+K13+K17+K20+K23+J26) -> -8 | N31: =(J4+J9+K13+J16+J19+K22+J27)-(K4+K9+J13+K16+K19+J22+K27) -> -26 | O31: =(J5+K9+J12+J15+K18+J23+J28)-(K5+J9+K12+K15+J18+K23+K28) -> 0 | P31: =(K5+K8+J11+K14+K19+J24+J29)-(J5+J8+K11+J14+J19+K24+K29) -> 15 | Q31: =(K4+J7+K10+K15+K20+J25+K29)-(J4+K7+J10+J15+J20+K25+J29) -> 36 | R31: =(K6+K11+K16+J21+K25+K28+K3)-(J3+J6+J11+J16+K21+J25+J28) -> 22 | S31: =(K2+K7+K12+K17+K21+K24+K27)-(J2+J7+J12+J17+J21+J24+J27) -> -91

Sheet Poule 2 (hidden)
B1: Poule 2 | E1: Tirage | G1: NOM du joueur 1 | H1: Contre | I1: NOM du joueur 2 | J1: POINTS | L1: 1 | M1: 2 | N1: 3 | O1: 4 | P1: 5 | Q1: 6 | R1: 7 | S1: 8
A2: 1 | B2: =Tirage_poules!W2 -> A7 | E2: 1 | F2: 8 | G2: =IFERROR(VLOOKUP(E2,$A$2:$B$9,2,0),"") -> A7 | H2: >>>> | I2: =IFERROR(VLOOKUP(F2,$A$2:$B$9,2,0),"") ->  | J2: 13 | L2: =IF($J2=13,1,0) -> 1 | S2: =IF($K2=13,1,0) -> 0
A3: 2 | B3: =Tirage_poules!W3 -> A28 | E3: 2 | F3: 7 | G3: =IFERROR(VLOOKUP(E3,$A$2:$B$9,2,0),"") -> A28 | H3: >>>> | I3: =IFERROR(VLOOKUP(F3,$A$2:$B$9,2,0),"") -> A36 | J3: 11 | K3: 13 | M3: =IF($J3=13,1,0) -> 0 | R3: =IF($K3=13,1,0) -> 1
A4: 3 | B4: =Tirage_poules!W4 -> A35 | E4: 3 | F4: 6 | G4: A35 | H4: >>>> | I4: A10 | J4: 13 | K4: 8 | N4: =IF($J4=13,1,0) -> 1 | Q4: =IF($K4=13,1,0) -> 0
A5: 4 | B5: =Tirage_poules!W5 -> A29 | E5: 4 | F5: 5 | G5: A29 | H5: >>>> | I5: A5 | J5: 5 | K5: 13 | O5: =IF($J5=13,1,0) -> 0 | P5: =IF($K5=13,1,0) -> 1
A6: 5 | B6: =Tirage_poules!W6 -> A5 | E6: 1 | F6: 7 | G6: A7 | H6: >>>> | I6: A36 | J6: 13 | K6: 2 | L6: =IF($J6=13,1,0) -> 1 | R6: =IF($K6=13,1,0) -> 0
A7: 6 | B7: =Tirage_poules!W7 -> A10 | E7: 6 | F7: 8 | G7: A10 | H7: >>>> | J7: 13 | Q7: =IF($J7=13,1,0) -> 1 | S7: =IF($K7=13,1,0) -> 0
A8: 7 | B8: =Tirage_poules!W8 -> A36 | E8: 2 | F8: 5 | G8: A28 | H8: >>>> | I8: A5 | J8: 13 | K8: 9 | M8: =IF($J8=13,1,0) -> 1 | P8: =IF($K8=13,1,0) -> 0
A9: 8 | B9: =Tirage_poules!W9 ->  | E9: 3 | F9: 4 | G9: A35 | H9: >>>> | I9: A29 | J9: 1 | K9: 13 | N9: =IF($J9=13,1,0) -> 0 | O9: =IF($K9=13,1,0) -> 1
E10: 1 | F10: 6 | G10: A7 | H10: >>>> | I10: A10 | J10: 1 | K10: 13 | L10: =IF($J10=13,1,0) -> 0 | Q10: =IF($K10=13,1,0) -> 1
E11: 5 | F11: 7 | G11: A5 | H11: >>>> | I11: A36 | J11: 3 | K11: 13 | P11: =IF($J11=13,1,0) -> 0 | R11: =IF($K11=13,1,0) -> 1
E12: 4 | F12: 8 | G12: A29 | H12: >>>> | J12: 13 | O12: =IF($J12=13,1,0) -> 1 | S12: =IF($K12=13,1,0) -> 0
E13: 2 | F13: 3 | G13: A28 | H13: >>>> | I13: A35 | J13: 13 | K13: 6 | M13: =IF($J13=13,1,0) -> 1 | N13: =IF($K13=13,1,0) -> 0
E14: 1 | F14: 5 | G14: A7 | H14: >>>> | I14: A5 | J14: 10 | K14: 13 | L14: =IF($J14=13,1,0) -> 0 | P14: =IF($K14=13,1,0) -> 1
E15: 4 | F15: 6 | G15: A29 | H15: >>>> | I15: A10 | J15: 4 | K15: 13 | O15: =IF($J15=13,1,0) -> 0 | Q15: =IF($K15=13,1,0) -> 1
E16: 3 | F16: 7 | G16: A35 | H16: >>>> | I16: A36 | J16: 7 | K16: 13 | N16: =IF($J16=13,1,0) -> 0 | R16: =IF($K16=13,1,0) -> 1
E17: 2 | F17: 8 | G17: A28 | H17: >>>> | J17: 13 | M17: =IF($J17=13,1,0) -> 1 | S17: =IF($K17=13,1,0) -> 0
E18: 1 | F18: 4 | G18: A7 | H18: >>>> | I18: A29 | J18: 13 | K18: 10 | L18: =IF($J18=13,1,0) -> 1 | O18: =IF($K18=13,1,0) -> 0
E19: 3 | F19: 5 | G19: A35 | H19: >>>> | I19: A5 | J19: 5 | K19: 13 | N19: =IF($J19=13,1,0) -> 0 | P19: =IF($K19=13,1,0) -> 1
E20: 2 | F20: 6 | G20: A28 | H20: >>>> | I20: A10 | J20: 0 | K20: 13 | M20: =IF($J20=13,1,0) -> 0 | Q20: =IF($K20=13,1,0) -> 1
E21: 7 | F21: 8 | G21: A36 | H21: >>>> | J21: 13 | R21: =IF($J21=13,1,0) -> 1 | S21: =IF($K21=13,1,0) -> 0
E22: 1 | F22: 3 | G22: A7 | H22: >>>> | I22: A35 | J22: 13 | K22: 2 | L22: =IF($J22=13,1,0) -> 1 | N22: =IF($K22=13,1,0) -> 0
E23: 2 | F23: 4 | G23: A28 | H23: >>>> | I23: A29 | J23: 1 | K23: 13 | M23: =IF($J23=13,1,0) -> 0 | O23: =IF($K23=13,1,0) -> 1
E24: 5 | F24: 8 | G24: A5 | H24: >>>> | J24: 13 | P24: =IF($J24=13,1,0) -> 1 | S24: =IF($K24=13,1,0) -> 0
E25: 6 | F25: 7 | G25: A10 | H25: >>>> | I25: A36 | J25: 4 | K25: 13 | Q25: =IF($J25=13,1,0) -> 0 | R25: =IF($K25=13,1,0) -> 1
E26: 1 | F26: 2 | G26: A7 | H26: >>>> | I26: A28 | J26: 13 | K26: 8 | L26: =IF($J26=13,1,0) -> 1 | M26: =IF($K26=13,1,0) -> 0
E27: 3 | F27: 8 | G27: A35 | H27: >>>> | J27: 13 | N27: =IF($J27=13,1,0) -> 1 | S27: =IF($K27=13,1,0) -> 0
E28: 4 | F28: 7 | G28: A29 | H28: >>>> | I28: A36 | J28: 13 | K28: 6 | O28: =IF($J28=13,1,0) -> 1 | R28: =IF($K28=13,1,0) -> 0
E29: 5 | F29: 6 | G29: A5 | H29: >>>> | I29: A10 | J29: 10 | K29: 13 | P29: =IF($J29=13,1,0) -> 0 | Q29: =IF($K29=13,1,0) -> 1
J30: Total Points | L30: =SUM(L2:L29) -> 5 | M30: =SUM(M2:M29) -> 3 | N30: 2 | O30: 4 | P30: 4 | Q30: 5 | R30: 5 | S30: 0
J31: Diff points | L31: =(J2+J6+J10+J14+J18+J22+J26)-(K2+K6+K10+K14+K18+K22+K26) -> 28 | M31: =(J3+J8+J13+J17+J20+J23+K26)-(K3+K8+K13+K17+K20+K23+J26) -> -8 | N31: =(J4+J9+K13+J16+J19+K22+J27)-(K4+K9+J13+K16+K19+J22+K27) -> -26 | O31: =(J5+K9+J12+J15+K18+J23+J28)-(K5+J9+K12+K15+J18+K23+K28) -> 0 | P31: =(K5+K8+J11+K14+K19+J24+J29)-(J5+J8+K11+J14+J19+K24+K29) -> 15 | Q31: =(K4+J7+K10+K15+K20+J25+K29)-(J4+K7+J10+J15+J20+K25+J29) -> 36 | R31: =(K6+K11+K16+J21+K25+K28+K3)-(J3+J6+J11+J16+K21+J25+J28) -> 22 | S31: =(K2+K7+K12+K17+K21+K24+K27)-(J2+J7+J12+J17+J21+J24+J27) -> -91

Sheet Poule 3 (hidden)
B1: Poule 3 | E1: Tirage | G1: NOM du joueur 1 | H1: Contre | I1: NOM du joueur 2 | J1: POINTS | L1: 1 | M1: 2 | N1: 3 | O1: 4 | P1: 5 | Q1: 6 | R1: 7 | S1: 8
A2: 1 | B2: =Tirage_poules!Y2 -> A24 | E2: 1 | F2: 8 | G2: =IFERROR(VLOOKUP(E2,$A$2:$B$9,2,0),"") -> A24 | H2: >>>> | I2: =IFERROR(VLOOKUP(F2,$A$2:$B$9,2,0),"") ->  | J2: 13 | L2: =IF($J2=13,1,0) -> 1 | S2: =IF($K2=13,1,0) -> 0
A3: 2 | B3: =Tirage_poules!Y3 -> A19 | E3: 2 | F3: 7 | G3: =IFERROR(VLOOKUP(E3,$A$2:$B$9,2,0),"") -> A19 | H3: >>>> | I3: =IFERROR(VLOOKUP(F3,$A$2:$B$9,2,0),"") -> A21 | J3: 11 | K3: 13 | M3: =IF($J3=13,1,0) -> 0 | R3: =IF($K3=13,1,0) -> 1
A4: 3 | B4: =Tirage_poules!Y4 -> A8 | E4: 3 | F4: 6 | G4: A8 | H4: >>>> | I4: A40 | J4: 13 | K4: 8 | N4: =IF($J4=13,1,0) -> 1 | Q4: =IF($K4=13,1,0) -> 0
A5: 4 | B5: =Tirage_poules!Y5 -> A37 | E5: 4 | F5: 5 | G5: A37 | H5: >>>> | I5: A49 | J5: 5 | K5: 13 | O5: =IF($J5=13,1,0) -> 0 | P5: =IF($K5=13,1,0) -> 1
A6: 5 | B6: =Tirage_poules!Y6 -> A49 | E6: 1 | F6: 7 | G6: A24 | H6: >>>> | I6: A21 | J6: 13 | K6: 2 | L6: =IF($J6=13,1,0) -> 1 | R6: =IF($K6=13,1,0) -> 0
A7: 6 | B7: =Tirage_poules!Y7 -> A40 | E7: 6 | F7: 8 | G7: A40 | H7: >>>> | J7: 13 | Q7: =IF($J7=13,1,0) -> 1 | S7: =IF($K7=13,1,0) -> 0
A8: 7 | B8: =Tirage_poules!Y8 -> A21 | E8: 2 | F8: 5 | G8: A19 | H8: >>>> | I8: A49 | J8: 13 | K8: 9 | M8: =IF($J8=13,1,0) -> 1 | P8: =IF($K8=13,1,0) -> 0
A9: 8 | B9: =Tirage_poules!Y9 ->  | E9: 3 | F9: 4 | G9: A8 | H9: >>>> | I9: A37 | J9: 1 | K9: 13 | N9: =IF($J9=13,1,0) -> 0 | O9: =IF($K9=13,1,0) -> 1
E10: 1 | F10: 6 | G10: A24 | H10: >>>> | I10: A40 | J10: 1 | K10: 13 | L10: =IF($J10=13,1,0) -> 0 | Q10: =IF($K10=13,1,0) -> 1
E11: 5 | F11: 7 | G11: A49 | H11: >>>> | I11: A21 | J11: 3 | K11: 13 | P11: =IF($J11=13,1,0) -> 0 | R11: =IF($K11=13,1,0) -> 1
E12: 4 | F12: 8 | G12: A37 | H12: >>>> | J12: 13 | O12: =IF($J12=13,1,0) -> 1 | S12: =IF($K12=13,1,0) -> 0
E13: 2 | F13: 3 | G13: A19 | H13: >>>> | I13: A8 | J13: 13 | K13: 6 | M13: =IF($J13=13,1,0) -> 1 | N13: =IF($K13=13,1,0) -> 0
E14: 1 | F14: 5 | G14: A24 | H14: >>>> | I14: A49 | J14: 10 | K14: 13 | L14: =IF($J14=13,1,0) -> 0 | P14: =IF($K14=13,1,0) -> 1
E15: 4 | F15: 6 | G15: A37 | H15: >>>> | I15: A40 | J15: 4 | K15: 13 | O15: =IF($J15=13,1,0) -> 0 | Q15: =IF($K15=13,1,0) -> 1
E16: 3 | F16: 7 | G16: A8 | H16: >>>> | I16: A21 | J16: 7 | K16: 13 | N16: =IF($J16=13,1,0) -> 0 | R16: =IF($K16=13,1,0) -> 1
E17: 2 | F17: 8 | G17: A19 | H17: >>>> | J17: 13 | M17: =IF($J17=13,1,0) -> 1 | S17: =IF($K17=13,1,0) -> 0
E18: 1 | F18: 4 | G18: A24 | H18: >>>> | I18: A37 | J18: 13 | K18: 10 | L18: =IF($J18=13,1,0) -> 1 | O18: =IF($K18=13,1,0) -> 0
E19: 3 | F19: 5 | G19: A8 | H19: >>>> | I19: A49 | J19: 5 | K19: 13 | N19: =IF($J19=13,1,0) -> 0 | P19: =IF($K19=13,1,0) -> 1
E20: 2 | F20: 6 | G20: A19 | H20: >>>> | I20: A40 | J20: 0 | K20: 13 | M20: =IF($J20=13,1,0) -> 0 | Q20: =IF($K20=13,1,0) -> 1
E21: 7 | F21: 8 | G21: A21 | H21: >>>> | J21: 13 | R21: =IF($J21=13,1,0) -> 1 | S21: =IF($K21=13,1,0) -> 0
E22: 1 | F22: 3 | G22: A24 | H22: >>>> | I22: A8 | J22: 13 | K22: 2 | L22: =IF($J22=13,1,0) -> 1 | N22: =IF($K22=13,1,0) -> 0
E23: 2 | F23: 4 | G23: A19 | H23: >>>> | I23: A37 | J23: 1 | K23: 13 | M23: =IF($J23=13,1,0) -> 0 | O23: =IF($K23=13,1,0) -> 1
E24: 5 | F24: 8 | G24: A49 | H24: >>>> | J24: 13 | P24: =IF($J24=13,1,0) -> 1 | S24: =IF($K24=13,1,0) -> 0
E25: 6 | F25: 7 | G25: A40 | H25: >>>> | I25: A21 | J25: 4 | K25: 13 | Q25: =IF($J25=13,1,0) -> 0 | R25: =IF($K25=13,1,0) -> 1
E26: 1 | F26: 2 | G26: A24 | H26: >>>> | I26: A19 | J26: 13 | K26: 8 | L26: =IF($J26=13,1,0) -> 1 | M26: =IF($K26=13,1,0) -> 0
E27: 3 | F27: 8 | G27: A8 | H27: >>>> | J27: 13 | N27: =IF($J27=13,1,0) -> 1 | S27: =IF($K27=13,1,0) -> 0
E28: 4 | F28: 7 | G28: A37 | H28: >>>> | I28: A21 | J28: 13 | K28: 6 | O28: =IF($J28=13,1,0) -> 1 | R28: =IF($K28=13,1,0) -> 0
E29: 5 | F29: 6 | G29: A49 | H29: >>>> | I29: A40 | J29: 10 | K29: 13 | P29: =IF($J29=13,1,0) -> 0 | Q29: =IF($K29=13,1,0) -> 1
J30: Total Points | L30: =SUM(L2:L29) -> 5 | M30: =SUM(M2:M29) -> 3 | N30: 2 | O30: 4 | P30: 4 | Q30: 5 | R30: 5 | S30: 0
J31: Diff points | L31: =(J2+J6+J10+J14+J18+J22+J26)-(K2+K6+K10+K14+K18+K22+K26) -> 28 | M31: =(J3+J8+J13+J17+J20+J23+K26)-(K3+K8+K13+K17+K20+K23+J26) -> -8 | N31: =(J4+J9+K13+J16+J19+K22+J27)-(K4+K9+J13+K16+K19+J22+K27) -> -26 | O31: =(J5+K9+J12+J15+K18+J23+J28)-(K5+J9+K12+K15+J18+K23+K28) -> 0 | P31: =(K5+K8+J11+K14+K19+J24+J29)-(J5+J8+K11+J14+J19+K24+K29) -> 15 | Q31: =(K4+J7+K10+K15+K20+J25+K29)-(J4+K7+J10+J15+J20+K25+J29) -> 36 | R31: =(K6+K11+K16+J21+K25+K28+K3)-(J3+J6+J11+J16+K21+J25+J28) -> 22 | S31: =(K2+K7+K12+K17+K21+K24+K27)-(J2+J7+J12+J17+J21+J24+J27) -> -91

Sheet Poule 4 (hidden)
B1: Poule 4 | E1: Tirage | G1: NOM du joueur 1 | H1: Contre | I1: NOM du joueur 2 | J1: POINTS | L1: 1 | M1: 2 | N1: 3 | O1: 4 | P1: 5 | Q1: 6 | R1: 7 | S1: 8
A2: 1 | B2: =Tirage_poules!AA2 -> A25 | E2: 1 | F2: 8 | G2: =IFERROR(VLOOKUP(E2,$A$2:$B$9,2,0),"") -> A25 | H2: >>>> | I2: =IFERROR(VLOOKUP(F2,$A$2:$B$9,2,0),"") ->  | J2: 13 | L2: =IF($J2=13,1,0) -> 1 | S2: =IF($K2=13,1,0) -> 0
A3: 2 | B3: =Tirage_poules!AA3 -> A26 | E3: 2 | F3: 7 | G3: =IFERROR(VLOOKUP(E3,$A$2:$B$9,2,0),"") -> A26 | H3: >>>> | I3: =IFERROR(VLOOKUP(F3,$A$2:$B$9,2,0),"") -> A2 | J3: 11 | K3: 13 | M3: =IF($J3=13,1,0) -> 0 | R3: =IF($K3=13,1,0) -> 1
A4: 3 | B4: =Tirage_poules!AA4 -> A9 | E4: 3 | F4: 6 | G4: A9 | H4: >>>> | I4: A14 | J4: 13 | K4: 8 | N4: =IF($J4=13,1,0) -> 1 | Q4: =IF($K4=13,1,0) -> 0
A5: 4 | B5: =Tirage_poules!AA5 -> A15 | E5: 4 | F5: 5 | G5: A15 | H5: >>>> | I5: A46 | J5: 5 | K5: 13 | O5: =IF($J5=13,1,0) -> 0 | P5: =IF($K5=13,1,0) -> 1
A6: 5 | B6: =Tirage_poules!AA6 -> A46 | E6: 1 | F6: 7 | G6: A25 | H6: >>>> | I6: A2 | J6: 13 | K6: 2 | L6: =IF($J6=13,1,0) -> 1 | R6: =IF($K6=13,1,0) -> 0
A7: 6 | B7: =Tirage_poules!AA7 -> A14 | E7: 6 | F7: 8 | G7: A14 | H7: >>>> | J7: 13 | Q7: =IF($J7=13,1,0) -> 1 | S7: =IF($K7=13,1,0) -> 0
A8: 7 | B8: =Tirage_poules!AA8 -> A2 | E8: 2 | F8: 5 | G8: A26 | H8: >>>> | I8: A46 | J8: 13 | K8: 9 | M8: =IF($J8=13,1,0) -> 1 | P8: =IF($K8=13,1,0) -> 0
A9: 8 | B9: =Tirage_poules!AA9 ->  | E9: 3 | F9: 4 | G9: A9 | H9: >>>> | I9: A15 | J9: 1 | K9: 13 | N9: =IF($J9=13,1,0) -> 0 | O9: =IF($K9=13,1,0) -> 1
E10: 1 | F10: 6 | G10: A25 | H10: >>>> | I10: A14 | J10: 1 | K10: 13 | L10: =IF($J10=13,1,0) -> 0 | Q10: =IF($K10=13,1,0) -> 1
E11: 5 | F11: 7 | G11: A46 | H11: >>>> | I11: A2 | J11: 3 | K11: 13 | P11: =IF($J11=13,1,0) -> 0 | R11: =IF($K11=13,1,0) -> 1
E12: 4 | F12: 8 | G12: A15 | H12: >>>> | J12: 13 | O12: =IF($J12=13,1,0) -> 1 | S12: =IF($K12=13,1,0) -> 0
E13: 2 | F13: 3 | G13: A26 | H13: >>>> | I13: A9 | J13: 13 | K13: 6 | M13: =IF($J13=13,1,0) -> 1 | N13: =IF($K13=13,1,0) -> 0
E14: 1 | F14: 5 | G14: A25 | H14: >>>> | I14: A46 | J14: 10 | K14: 13 | L14: =IF($J14=13,1,0) -> 0 | P14: =IF($K14=13,1,0) -> 1
E15: 4 | F15: 6 | G15: A15 | H15: >>>> | I15: A14 | J15: 4 | K15: 13 | O15: =IF($J15=13,1,0) -> 0 | Q15: =IF($K15=13,1,0) -> 1
E16: 3 | F16: 7 | G16: A9 | H16: >>>> | I16: A2 | J16: 7 | K16: 13 | N16: =IF($J16=13,1,0) -> 0 | R16: =IF($K16=13,1,0) -> 1
E17: 2 | F17: 8 | G17: A26 | H17: >>>> | J17: 13 | M17: =IF($J17=13,1,0) -> 1 | S17: =IF($K17=13,1,0) -> 0
E18: 1 | F18: 4 | G18: A25 | H18: >>>> | I18: A15 | J18: 13 | K18: 10 | L18: =IF($J18=13,1,0) -> 1 | O18: =IF($K18=13,1,0) -> 0
E19: 3 | F19: 5 | G19: A9 | H19: >>>> | I19: A46 | J19: 5 | K19: 13 | N19: =IF($J19=13,1,0) -> 0 | P19: =IF($K19=13,1,0) -> 1
E20: 2 | F20: 6 | G20: A26 | H20: >>>> | I20: A14 | J20: 0 | K20: 13 | M20: =IF($J20=13,1,0) -> 0 | Q20: =IF($K20=13,1,0) -> 1
E21: 7 | F21: 8 | G21: A2 | H21: >>>> | J21: 13 | R21: =IF($J21=13,1,0) -> 1 | S21: =IF($K21=13,1,0) -> 0
E22: 1 | F22: 3 | G22: A25 | H22: >>>> | I22: A9 | J22: 13 | K22: 2 | L22: =IF($J22=13,1,0) -> 1 | N22: =IF($K22=13,1,0) -> 0
E23: 2 | F23: 4 | G23: A26 | H23: >>>> | I23: A15 | J23: 1 | K23: 13 | M23: =IF($J23=13,1,0) -> 0 | O23: =IF($K23=13,1,0) -> 1
E24: 5 | F24: 8 | G24: A46 | H24: >>>> | J24: 13 | P24: =IF($J24=13,1,0) -> 1 | S24: =IF($K24=13,1,0) -> 0
E25: 6 | F25: 7 | G25: A14 | H25: >>>> | I25: A2 | J25: 4 | K25: 13 | Q25: =IF($J25=13,1,0) -> 0 | R25: =IF($K25=13,1,0) -> 1
E26: 1 | F26: 2 | G26: A25 | H26: >>>> | I26: A26 | J26: 13 | K26: 8 | L26: =IF($J26=13,1,0) -> 1 | M26: =IF($K26=13,1,0) -> 0
E27: 3 | F27: 8 | G27: A9 | H27: >>>> | J27: 13 | N27: =IF($J27=13,1,0) -> 1 | S27: =IF($K27=13,1,0) -> 0
E28: 4 | F28: 7 | G28: A15 | H28: >>>> | I28: A2 | J28: 13 | K28: 6 | O28: =IF($J28=13,1,0) -> 1 | R28: =IF($K28=13,1,0) -> 0
E29: 5 | F29: 6 | G29: A46 | H29: >>>> | I29: A14 | J29: 10 | K29: 13 | P29: =IF($J29=13,1,0) -> 0 | Q29: =IF($K29=13,1,0) -> 1
J30: Total Points | L30: =SUM(L2:L29) -> 5 | M30: =SUM(M2:M29) -> 3 | N30: 2 | O30: 4 | P30: 4 | Q30: 5 | R30: 5 | S30: 0
J31: Diff points | L31: =(J2+J6+J10+J14+J18+J22+J26)-(K2+K6+K10+K14+K18+K22+K26) -> 28 | M31: =(J3+J8+J13+J17+J20+J23+K26)-(K3+K8+K13+K17+K20+K23+J26) -> -8 | N31: =(J4+J9+K13+J16+J19+K22+J27)-(K4+K9+J13+K16+K19+J22+K27) -> -26 | O31: =(J5+K9+J12+J15+K18+J23+J28)-(K5+J9+K12+K15+J18+K23+K28) -> 0 | P31: =(K5+K8+J11+K14+K19+J24+J29)-(J5+J8+K11+J14+J19+K24+K29) -> 15 | Q31: =(K4+J7+K10+K15+K20+J25+K29)-(J4+K7+J10+J15+J20+K25+J29) -> 36 | R31: =(K6+K11+K16+J21+K25+K28+K3)-(J3+J6+J11+J16+K21+J25+J28) -> 22 | S31: =(K2+K7+K12+K17+K21+K24+K27)-(J2+J7+J12+J17+J21+J24+J27) -> -91

Sheet Poule 5 (hidden)
B1: Poule 5 | E1: Tirage | G1: NOM du joueur 1 | H1: Contre | I1: NOM du joueur 2 | J1: POINTS | L1: 1 | M1: 2 | N1: 3 | O1: 4 | P1: 5 | Q1: 6 | R1: 7 | S1: 8
A2: 1 | B2: =Tirage_poules!AC2 -> A17 | E2: 1 | F2: 8 | G2: =IFERROR(VLOOKUP(E2,$A$2:$B$9,2,0),"") -> A17 | H2: >>>> | I2: =IFERROR(VLOOKUP(F2,$A$2:$B$9,2,0),"") ->  | J2: 13 | L2: =IF($J2=13,1,0) -> 1 | S2: =IF($K2=13,1,0) -> 0
A3: 2 | B3: =Tirage_poules!AC3 -> A42 | E3: 2 | F3: 7 | G3: =IFERROR(VLOOKUP(E3,$A$2:$B$9,2,0),"") -> A42 | H3: >>>> | I3: =IFERROR(VLOOKUP(F3,$A$2:$B$9,2,0),"") ->  | J3: 13 | M3: =IF($J3=13,1,0) -> 1 | R3: =IF($K3=13,1,0) -> 0
A4: 3 | B4: =Tirage_poules!AC4 -> A16 | E4: 3 | F4: 6 | G4: A16 | H4: >>>> | I4: A45 | J4: 13 | K4: 8 | N4: =IF($J4=13,1,0) -> 1 | Q4: =IF($K4=13,1,0) -> 0
A5: 4 | B5: =Tirage_poules!AC5 -> A13 | E5: 4 | F5: 5 | G5: A13 | H5: >>>> | I5: A3 | J5: 5 | K5: 13 | O5: =IF($J5=13,1,0) -> 0 | P5: =IF($K5=13,1,0) -> 1
A6: 5 | B6: =Tirage_poules!AC6 -> A3 | E6: 1 | F6: 7 | G6: A17 | H6: >>>> | J6: 13 | L6: =IF($J6=13,1,0) -> 1 | R6: =IF($K6=13,1,0) -> 0
A7: 6 | B7: =Tirage_poules!AC7 -> A45 | E7: 6 | F7: 8 | G7: A45 | H7: >>>> | J7: 13 | Q7: =IF($J7=13,1,0) -> 1 | S7: =IF($K7=13,1,0) -> 0
A8: 7 | B8: =Tirage_poules!AC8 ->  | E8: 2 | F8: 5 | G8: A42 | H8: >>>> | I8: A3 | J8: 13 | K8: 9 | M8: =IF($J8=13,1,0) -> 1 | P8: =IF($K8=13,1,0) -> 0
A9: 8 | B9: =Tirage_poules!AC9 ->  | E9: 3 | F9: 4 | G9: A16 | H9: >>>> | I9: A13 | J9: 1 | K9: 13 | N9: =IF($J9=13,1,0) -> 0 | O9: =IF($K9=13,1,0) -> 1
E10: 1 | F10: 6 | G10: A17 | H10: >>>> | I10: A45 | J10: 1 | K10: 13 | L10: =IF($J10=13,1,0) -> 0 | Q10: =IF($K10=13,1,0) -> 1
E11: 5 | F11: 7 | G11: A3 | H11: >>>> | J11: 13 | P11: =IF($J11=13,1,0) -> 1 | R11: =IF($K11=13,1,0) -> 0
E12: 4 | F12: 8 | G12: A13 | H12: >>>> | J12: 13 | O12: =IF($J12=13,1,0) -> 1 | S12: =IF($K12=13,1,0) -> 0
E13: 2 | F13: 3 | G13: A42 | H13: >>>> | I13: A16 | J13: 13 | K13: 6 | M13: =IF($J13=13,1,0) -> 1 | N13: =IF($K13=13,1,0) -> 0
E14: 1 | F14: 5 | G14: A17 | H14: >>>> | I14: A3 | J14: 10 | K14: 13 | L14: =IF($J14=13,1,0) -> 0 | P14: =IF($K14=13,1,0) -> 1
E15: 4 | F15: 6 | G15: A13 | H15: >>>> | I15: A45 | J15: 4 | K15: 13 | O15: =IF($J15=13,1,0) -> 0 | Q15: =IF($K15=13,1,0) -> 1
E16: 3 | F16: 7 | G16: A16 | H16: >>>> | J16: 13 | N16: =IF($J16=13,1,0) -> 1 | R16: =IF($K16=13,1,0) -> 0
E17: 2 | F17: 8 | G17: A42 | H17: >>>> | J17: 13 | M17: =IF($J17=13,1,0) -> 1 | S17: =IF($K17=13,1,0) -> 0
E18: 1 | F18: 4 | G18: A17 | H18: >>>> | I18: A13 | J18: 13 | K18: 10 | L18: =IF($J18=13,1,0) -> 1 | O18: =IF($K18=13,1,0) -> 0
E19: 3 | F19: 5 | G19: A16 | H19: >>>> | I19: A3 | J19: 5 | K19: 13 | N19: =IF($J19=13,1,0) -> 0 | P19: =IF($K19=13,1,0) -> 1
E20: 2 | F20: 6 | G20: A42 | H20: >>>> | I20: A45 | J20: 0 | K20: 13 | M20: =IF($J20=13,1,0) -> 0 | Q20: =IF($K20=13,1,0) -> 1
E21: 7 | F21: 8 | H21: >>>> | R21: =IF($J21=13,1,0) -> 0 | S21: =IF($K21=13,1,0) -> 0
E22: 1 | F22: 3 | G22: A17 | H22: >>>> | I22: A16 | J22: 13 | K22: 2 | L22: =IF($J22=13,1,0) -> 1 | N22: =IF($K22=13,1,0) -> 0
E23: 2 | F23: 4 | G23: A42 | H23: >>>> | I23: A13 | J23: 1 | K23: 13 | M23: =IF($J23=13,1,0) -> 0 | O23: =IF($K23=13,1,0) -> 1
E24: 5 | F24: 8 | G24: A3 | H24: >>>> | J24: 13 | P24: =IF($J24=13,1,0) -> 1 | S24: =IF($K24=13,1,0) -> 0
E25: 6 | F25: 7 | G25: A45 | H25: >>>> | J25: 13 | Q25: =IF($J25=13,1,0) -> 1 | R25: =IF($K25=13,1,0) -> 0
E26: 1 | F26: 2 | G26: A17 | H26: >>>> | I26: A42 | J26: 13 | K26: 8 | L26: =IF($J26=13,1,0) -> 1 | M26: =IF($K26=13,1,0) -> 0
E27: 3 | F27: 8 | G27: A16 | H27: >>>> | J27: 13 | N27: =IF($J27=13,1,0) -> 1 | S27: =IF($K27=13,1,0) -> 0
E28: 4 | F28: 7 | G28: A13 | H28: >>>> | J28: 13 | O28: =IF($J28=13,1,0) -> 1 | R28: =IF($K28=13,1,0) -> 0
E29: 5 | F29: 6 | G29: A3 | H29: >>>> | I29: A45 | J29: 10 | K29: 13 | P29: =IF($J29=13,1,0) -> 0 | Q29: =IF($K29=13,1,0) -> 1
J30: Total Points | L30: =SUM(L2:L29) -> 5 | M30: =SUM(M2:M29) -> 4 | N30: 3 | O30: 4 | P30: 5 | Q30: 6 | R30: 0 | S30: 0
J31: Diff points | L31: =(J2+J6+J10+J14+J18+J22+J26)-(K2+K6+K10+K14+K18+K22+K26) -> 30 | M31: =(J3+J8+J13+J17+J20+J23+K26)-(K3+K8+K13+K17+K20+K23+J26) -> 7 | N31: =(J4+J9+K13+J16+J19+K22+J27)-(K4+K9+J13+K16+K19+J22+K27) -> -7 | O31: =(J5+K9+J12+J15+K18+J23+J28)-(K5+J9+K12+K15+J18+K23+K28) -> 6 | P31: =(K5+K8+J11+K14+K19+J24+J29)-(J5+J8+K11+J14+J19+K24+K29) -> 38 | Q31: =(K4+J7+K10+K15+K20+J25+K29)-(J4+K7+J10+J15+J20+K25+J29) -> 58 | R31: =(K6+K11+K16+J21+K25+K28+K3)-(J3+J6+J11+J16+K21+J25+J28) -> -78 | S31: =(K2+K7+K12+K17+K21+K24+K27)-(J2+J7+J12+J17+J21+J24+J27) -> -78

Sheet Poule 6 (hidden)
B1: Poule 6 | E1: Tirage | G1: NOM du joueur 1 | H1: Contre | I1: NOM du joueur 2 | J1: POINTS | L1: 1 | M1: 2 | N1: 3 | O1: 4 | P1: 5 | Q1: 6 | R1: 7 | S1: 8
A2: 1 | B2: =Tirage_poules!AE2 -> A33 | E2: 1 | F2: 8 | G2: =IFERROR(VLOOKUP(E2,$A$2:$B$9,2,0),"") -> A33 | H2: >>>> | I2: =IFERROR(VLOOKUP(F2,$A$2:$B$9,2,0),"") ->  | J2: 13 | L2: =IF($J2=13,1,0) -> 1 | S2: =IF($K2=13,1,0) -> 0
A3: 2 | B3: =Tirage_poules!AE3 -> A22 | E3: 2 | F3: 7 | G3: =IFERROR(VLOOKUP(E3,$A$2:$B$9,2,0),"") -> A22 | H3: >>>> | I3: =IFERROR(VLOOKUP(F3,$A$2:$B$9,2,0),"") ->  | J3: 13 | M3: =IF($J3=13,1,0) -> 1 | R3: =IF($K3=13,1,0) -> 0
A4: 3 | B4: =Tirage_poules!AE4 -> A50 | E4: 3 | F4: 6 | G4: A50 | H4: >>>> | I4: A48 | J4: 13 | K4: 8 | N4: =IF($J4=13,1,0) -> 1 | Q4: =IF($K4=13,1,0) -> 0
A5: 4 | B5: =Tirage_poules!AE5 -> A12 | E5: 4 | F5: 5 | G5: A12 | H5: >>>> | I5: A52 | J5: 5 | K5: 13 | O5: =IF($J5=13,1,0) -> 0 | P5: =IF($K5=13,1,0) -> 1
A6: 5 | B6: =Tirage_poules!AE6 -> A52 | E6: 1 | F6: 7 | G6: A33 | H6: >>>> | J6: 13 | L6: =IF($J6=13,1,0) -> 1 | R6: =IF($K6=13,1,0) -> 0
A7: 6 | B7: =Tirage_poules!AE7 -> A48 | E7: 6 | F7: 8 | G7: A48 | H7: >>>> | J7: 13 | Q7: =IF($J7=13,1,0) -> 1 | S7: =IF($K7=13,1,0) -> 0
A8: 7 | B8: =Tirage_poules!AE8 ->  | E8: 2 | F8: 5 | G8: A22 | H8: >>>> | I8: A52 | J8: 13 | K8: 9 | M8: =IF($J8=13,1,0) -> 1 | P8: =IF($K8=13,1,0) -> 0
A9: 8 | B9: =Tirage_poules!AE9 ->  | E9: 3 | F9: 4 | G9: A50 | H9: >>>> | I9: A12 | J9: 1 | K9: 13 | N9: =IF($J9=13,1,0) -> 0 | O9: =IF($K9=13,1,0) -> 1
E10: 1 | F10: 6 | G10: A33 | H10: >>>> | I10: A48 | J10: 1 | K10: 13 | L10: =IF($J10=13,1,0) -> 0 | Q10: =IF($K10=13,1,0) -> 1
E11: 5 | F11: 7 | G11: A52 | H11: >>>> | J11: 13 | P11: =IF($J11=13,1,0) -> 1 | R11: =IF($K11=13,1,0) -> 0
E12: 4 | F12: 8 | G12: A12 | H12: >>>> | J12: 13 | O12: =IF($J12=13,1,0) -> 1 | S12: =IF($K12=13,1,0) -> 0
E13: 2 | F13: 3 | G13: A22 | H13: >>>> | I13: A50 | J13: 13 | K13: 6 | M13: =IF($J13=13,1,0) -> 1 | N13: =IF($K13=13,1,0) -> 0
E14: 1 | F14: 5 | G14: A33 | H14: >>>> | I14: A52 | J14: 10 | K14: 13 | L14: =IF($J14=13,1,0) -> 0 | P14: =IF($K14=13,1,0) -> 1
E15: 4 | F15: 6 | G15: A12 | H15: >>>> | I15: A48 | J15: 4 | K15: 13 | O15: =IF($J15=13,1,0) -> 0 | Q15: =IF($K15=13,1,0) -> 1
E16: 3 | F16: 7 | G16: A50 | H16: >>>> | J16: 13 | N16: =IF($J16=13,1,0) -> 1 | R16: =IF($K16=13,1,0) -> 0
E17: 2 | F17: 8 | G17: A22 | H17: >>>> | J17: 13 | M17: =IF($J17=13,1,0) -> 1 | S17: =IF($K17=13,1,0) -> 0
E18: 1 | F18: 4 | G18: A33 | H18: >>>> | I18: A12 | J18: 13 | K18: 10 | L18: =IF($J18=13,1,0) -> 1 | O18: =IF($K18=13,1,0) -> 0
E19: 3 | F19: 5 | G19: A50 | H19: >>>> | I19: A52 | J19: 5 | K19: 13 | N19: =IF($J19=13,1,0) -> 0 | P19: =IF($K19=13,1,0) -> 1
E20: 2 | F20: 6 | G20: A22 | H20: >>>> | I20: A48 | J20: 0 | K20: 13 | M20: =IF($J20=13,1,0) -> 0 | Q20: =IF($K20=13,1,0) -> 1
E21: 7 | F21: 8 | H21: >>>> | R21: =IF($J21=13,1,0) -> 0 | S21: =IF($K21=13,1,0) -> 0
E22: 1 | F22: 3 | G22: A33 | H22: >>>> | I22: A50 | J22: 13 | K22: 2 | L22: =IF($J22=13,1,0) -> 1 | N22: =IF($K22=13,1,0) -> 0
E23: 2 | F23: 4 | G23: A22 | H23: >>>> | I23: A12 | J23: 1 | K23: 13 | M23: =IF($J23=13,1,0) -> 0 | O23: =IF($K23=13,1,0) -> 1
E24: 5 | F24: 8 | G24: A52 | H24: >>>> | J24: 13 | P24: =IF($J24=13,1,0) -> 1 | S24: =IF($K24=13,1,0) -> 0
E25: 6 | F25: 7 | G25: A48 | H25: >>>> | J25: 13 | Q25: =IF($J25=13,1,0) -> 1 | R25: =IF($K25=13,1,0) -> 0
E26: 1 | F26: 2 | G26: A33 | H26: >>>> | I26: A22 | J26: 13 | K26: 8 | L26: =IF($J26=13,1,0) -> 1 | M26: =IF($K26=13,1,0) -> 0
E27: 3 | F27: 8 | G27: A50 | H27: >>>> | J27: 13 | N27: =IF($J27=13,1,0) -> 1 | S27: =IF($K27=13,1,0) -> 0
E28: 4 | F28: 7 | G28: A12 | H28: >>>> | J28: 13 | O28: =IF($J28=13,1,0) -> 1 | R28: =IF($K28=13,1,0) -> 0
E29: 5 | F29: 6 | G29: A52 | H29: >>>> | I29: A48 | J29: 10 | K29: 13 | P29: =IF($J29=13,1,0) -> 0 | Q29: =IF($K29=13,1,0) -> 1
J30: Total Points | L30: =SUM(L2:L29) -> 5 | M30: =SUM(M2:M29) -> 4 | N30: 3 | O30: 4 | P30: 5 | Q30: 6 | R30: 0 | S30: 0
J31: Diff points | L31: =(J2+J6+J10+J14+J18+J22+J26)-(K2+K6+K10+K14+K18+K22+K26) -> 30 | M31: =(J3+J8+J13+J17+J20+J23+K26)-(K3+K8+K13+K17+K20+K23+J26) -> 7 | N31: =(J4+J9+K13+J16+J19+K22+J27)-(K4+K9+J13+K16+K19+J22+K27) -> -7 | O31: =(J5+K9+J12+J15+K18+J23+J28)-(K5+J9+K12+K15+J18+K23+K28) -> 6 | P31: =(K5+K8+J11+K14+K19+J24+J29)-(J5+J8+K11+J14+J19+K24+K29) -> 38 | Q31: =(K4+J7+K10+K15+K20+J25+K29)-(J4+K7+J10+J15+J20+K25+J29) -> 58 | R31: =(K6+K11+K16+J21+K25+K28+K3)-(J3+J6+J11+J16+K21+J25+J28) -> -78 | S31: =(K2+K7+K12+K17+K21+K24+K27)-(J2+J7+J12+J17+J21+J24+J27) -> -78

Sheet Poule 8 (hidden)
B1: Poule 8 | E1: Tirage | G1: NOM du joueur 1 | H1: Contre | I1: NOM du joueur 2 | J1: POINTS | L1: 1 | M1: 2 | N1: 3 | O1: 4 | P1: 5 | Q1: 6 | R1: 7 | S1: 8
A2: 1 | B2: =Tirage_poules!AI2 -> A39 | E2: 1 | F2: 8 | G2: =IFERROR(VLOOKUP(E2,$A$2:$B$9,2,0),"") -> A39 | H2: >>>> | I2: =IFERROR(VLOOKUP(F2,$A$2:$B$9,2,0),"") ->  | J2: 13 | L2: =IF($J2=13,1,0) -> 1 | S2: =IF($K2=13,1,0) -> 0
A3: 2 | B3: =Tirage_poules!AI3 -> A32 | E3: 2 | F3: 7 | G3: =IFERROR(VLOOKUP(E3,$A$2:$B$9,2,0),"") -> A32 | H3: >>>> | I3: =IFERROR(VLOOKUP(F3,$A$2:$B$9,2,0),"") ->  | J3: 13 | M3: =IF($J3=13,1,0) -> 1 | R3: =IF($K3=13,1,0) -> 0
A4: 3 | B4: =Tirage_poules!AI4 -> A41 | E4: 3 | F4: 6 | G4: A41 | H4: >>>> | I4: A41 | J4: 13 | K4: 8 | N4: =IF($J4=13,1,0) -> 1 | Q4: =IF($K4=13,1,0) -> 0
A5: 4 | B5: =Tirage_poules!AI5 -> A30 | E5: 4 | F5: 5 | G5: A30 | H5: >>>> | I5: A34 | J5: 5 | K5: 13 | O5: =IF($J5=13,1,0) -> 0 | P5: =IF($K5=13,1,0) -> 1
A6: 5 | B6: =Tirage_poules!AI6 -> A34 | E6: 1 | F6: 7 | G6: A39 | H6: >>>> | J6: 13 | L6: =IF($J6=13,1,0) -> 1 | R6: =IF($K6=13,1,0) -> 0
A7: 6 | B7: =Tirage_poules!AI7 -> A41 | E7: 6 | F7: 8 | G7: A41 | H7: >>>> | J7: 13 | Q7: =IF($J7=13,1,0) -> 1 | S7: =IF($K7=13,1,0) -> 0
A8: 7 | B8: =Tirage_poules!AI8 ->  | E8: 2 | F8: 5 | G8: A32 | H8: >>>> | I8: A34 | J8: 13 | K8: 9 | M8: =IF($J8=13,1,0) -> 1 | P8: =IF($K8=13,1,0) -> 0
A9: 8 | B9: =Tirage_poules!AI9 ->  | E9: 3 | F9: 4 | G9: A41 | H9: >>>> | I9: A30 | J9: 1 | K9: 13 | N9: =IF($J9=13,1,0) -> 0 | O9: =IF($K9=13,1,0) -> 1
E10: 1 | F10: 6 | G10: A39 | H10: >>>> | I10: A41 | J10: 1 | K10: 13 | L10: =IF($J10=13,1,0) -> 0 | Q10: =IF($K10=13,1,0) -> 1
E11: 5 | F11: 7 | G11: A34 | H11: >>>> | J11: 13 | P11: =IF($J11=13,1,0) -> 1 | R11: =IF($K11=13,1,0) -> 0
E12: 4 | F12: 8 | G12: A30 | H12: >>>> | J12: 13 | O12: =IF($J12=13,1,0) -> 1 | S12: =IF($K12=13,1,0) -> 0
E13: 2 | F13: 3 | G13: A32 | H13: >>>> | I13: A41 | J13: 13 | K13: 6 | M13: =IF($J13=13,1,0) -> 1 | N13: =IF($K13=13,1,0) -> 0
E14: 1 | F14: 5 | G14: A39 | H14: >>>> | I14: A34 | J14: 10 | K14: 13 | L14: =IF($J14=13,1,0) -> 0 | P14: =IF($K14=13,1,0) -> 1
E15: 4 | F15: 6 | G15: A30 | H15: >>>> | I15: A41 | J15: 4 | K15: 13 | O15: =IF($J15=13,1,0) -> 0 | Q15: =IF($K15=13,1,0) -> 1
E16: 3 | F16: 7 | G16: A41 | H16: >>>> | J16: 13 | N16: =IF($J16=13,1,0) -> 1 | R16: =IF($K16=13,1,0) -> 0
E17: 2 | F17: 8 | G17: A32 | H17: >>>> | J17: 13 | M17: =IF($J17=13,1,0) -> 1 | S17: =IF($K17=13,1,0) -> 0
E18: 1 | F18: 4 | G18: A39 | H18: >>>> | I18: A30 | J18: 13 | K18: 10 | L18: =IF($J18=13,1,0) -> 1 | O18: =IF($K18=13,1,0) -> 0
E19: 3 | F19: 5 | G19: A41 | H19: >>>> | I19: A34 | J19: 5 | K19: 13 | N19: =IF($J19=13,1,0) -> 0 | P19: =IF($K19=13,1,0) -> 1
E20: 2 | F20: 6 | G20: A32 | H20: >>>> | I20: A41 | J20: 0 | K20: 13 | M20: =IF($J20=13,1,0) -> 0 | Q20: =IF($K20=13,1,0) -> 1
E21: 7 | F21: 8 | H21: >>>> | R21: =IF($J21=13,1,0) -> 0 | S21: =IF($K21=13,1,0) -> 0
E22: 1 | F22: 3 | G22: A39 | H22: >>>> | I22: A41 | J22: 13 | K22: 2 | L22: =IF($J22=13,1,0) -> 1 | N22: =IF($K22=13,1,0) -> 0
E23: 2 | F23: 4 | G23: A32 | H23: >>>> | I23: A30 | J23: 1 | K23: 13 | M23: =IF($J23=13,1,0) -> 0 | O23: =IF($K23=13,1,0) -> 1
E24: 5 | F24: 8 | G24: A34 | H24: >>>> | J24: 13 | P24: =IF($J24=13,1,0) -> 1 | S24: =IF($K24=13,1,0) -> 0
E25: 6 | F25: 7 | G25: A41 | H25: >>>> | J25: 13 | Q25: =IF($J25=13,1,0) -> 1 | R25: =IF($K25=13,1,0) -> 0
E26: 1 | F26: 2 | G26: A39 | H26: >>>> | I26: A32 | J26: 13 | K26: 8 | L26: =IF($J26=13,1,0) -> 1 | M26: =IF($K26=13,1,0) -> 0
E27: 3 | F27: 8 | G27: A41 | H27: >>>> | J27: 13 | N27: =IF($J27=13,1,0) -> 1 | S27: =IF($K27=13,1,0) -> 0
E28: 4 | F28: 7 | G28: A30 | H28: >>>> | J28: 13 | O28: =IF($J28=13,1,0) -> 1 | R28: =IF($K28=13,1,0) -> 0
E29: 5 | F29: 6 | G29: A34 | H29: >>>> | I29: A41 | J29: 10 | K29: 13 | P29: =IF($J29=13,1,0) -> 0 | Q29: =IF($K29=13,1,0) -> 1
J30: Total Points | L30: =SUM(L2:L29) -> 5 | M30: =SUM(M2:M29) -> 4 | N30: 3 | O30: 4 | P30: 5 | Q30: 6 | R30: 0 | S30: 0
J31: Diff points | L31: =(J2+J6+J10+J14+J18+J22+J26)-(K2+K6+K10+K14+K18+K22+K26) -> 30 | M31: =(J3+J8+J13+J17+J20+J23+K26)-(K3+K8+K13+K17+K20+K23+J26) -> 7 | N31: =(J4+J9+K13+J16+J19+K22+J27)-(K4+K9+J13+K16+K19+J22+K27) -> -7 | O31: =(J5+K9+J12+J15+K18+J23+J28)-(K5+J9+K12+K15+J18+K23+K28) -> 6 | P31: =(K5+K8+J11+K14+K19+J24+J29)-(J5+J8+K11+J14+J19+K24+K29) -> 38 | Q31: =(K4+J7+K10+K15+K20+J25+K29)-(J4+K7+J10+J15+J20+K25+J29) -> 58 | R31: =(K6+K11+K16+J21+K25+K28+K3)-(J3+J6+J11+J16+K21+J25+J28) -> -78 | S31: =(K2+K7+K12+K17+K21+K24+K27)-(J2+J7+J12+J17+J21+J24+J27) -> -78

Sheet Classement (hidden)
B3: N° Inscription | C3: Noms | D3: Parties gagnées | E3: Ecart de points | G3: Classement | H3: Noms
B4: 1 | C4: ='Poule 7'!B7 -> A20 | D4: ='Poule 7'!Q$30 -> 6 | E4: ='Poule 7'!Q$31 -> 58 | F4: =SUM(D4*10000+E4*100) -> 65800 | G4: =RANK(F4,$F$4:$F$67,0) -> 1 | H4: =IF(C4="","",C4) -> A20
B5: 2 | C5: ='Poule 6'!B7 -> A48 | D5: ='Poule 6'!Q$30 -> 6 | E5: ='Poule 6'!Q$31 -> 58 | F5: =SUM(D5*10000+E5*100) -> 65800 | G5: =RANK(F5,$F$4:$F$67,0) -> 1 | H5: =IF(C5="","",C5) -> A48
B6: 3 | C6: ='Poule 8'!B7 -> A41 | D6: ='Poule 8'!Q$30 -> 6 | E6: ='Poule 8'!Q$31 -> 58 | F6: =SUM(D6*10000+E6*100) -> 65800 | G6: 1 | H6: A41
B7: 4 | C7: ='Poule 5'!B7 -> A45 | D7: ='Poule 5'!Q$30 -> 6 | E7: ='Poule 5'!Q$31 -> 58 | F7: =SUM(D7*10000+E7*100) -> 65800 | G7: 1 | H7: A45
B8: 5 | C8: ='Poule 6'!B6 -> A52 | D8: ='Poule 6'!P$30 -> 5 | E8: ='Poule 6'!P$31 -> 38 | F8: =SUM(D8*10000+E8*100) -> 53800 | G8: 5 | H8: A52
B9: 6 | C9: ='Poule 5'!B6 -> A3 | D9: ='Poule 5'!P$30 -> 5 | E9: ='Poule 5'!P$31 -> 38 | F9: =SUM(D9*10000+E9*100) -> 53800 | G9: 5 | H9: A3
B10: 7 | C10: ='Poule 8'!B6 -> A34 | D10: ='Poule 8'!P$30 -> 5 | E10: ='Poule 8'!P$31 -> 38 | F10: =SUM(D10*10000+E10*100) -> 53800 | G10: 5 | H10: A34
B11: 8 | C11: ='Poule 7'!B6 -> A47 | D11: ='Poule 7'!P$30 -> 5 | E11: ='Poule 7'!P$31 -> 38 | F11: =SUM(D11*10000+E11*100) -> 53800 | G11: 5 | H11: A47
B12: 9 | C12: ='Poule 1'!B7 -> A6 | D12: ='Poule 1'!Q$30 -> 5 | E12: ='Poule 1'!Q$31 -> 36 | F12: =SUM(D12*10000+E12*100) -> 53600 | G12: 9 | H12: A6
B13: 10 | C13: ='Poule 4'!B7 -> A14 | D13: ='Poule 4'!Q$30 -> 5 | E13: ='Poule 4'!Q$31 -> 36 | F13: =SUM(D13*10000+E13*100) -> 53600 | G13: 9 | H13: A14
B14: 11 | C14: ='Poule 3'!B7 -> A40 | D14: ='Poule 3'!Q$30 -> 5 | E14: ='Poule 3'!Q$31 -> 36 | F14: =SUM(D14*10000+E14*100) -> 53600 | G14: 9 | H14: A40
B15: 12 | C15: ='Poule 2'!B7 -> A10 | D15: ='Poule 2'!Q$30 -> 5 | E15: ='Poule 2'!Q$31 -> 36 | F15: =SUM(D15*10000+E15*100) -> 53600 | G15: 9 | H15: A10
B16: 13 | C16: ='Poule 6'!B2 -> A33 | D16: ='Poule 6'!L$30 -> 5 | E16: ='Poule 6'!L$31 -> 30 | F16: =SUM(D16*10000+E16*100) -> 53000 | G16: 13 | H16: A33
B17: 14 | C17: ='Poule 8'!B2 -> A39 | D17: ='Poule 8'!L$30 -> 5 | E17: ='Poule 8'!L$31 -> 30 | F17: =SUM(D17*10000+E17*100) -> 53000 | G17: 13 | H17: A39
B18: 15 | C18: ='Poule 7'!B2 -> A43 | D18: ='Poule 7'!L$30 -> 5 | E18: ='Poule 7'!L$31 -> 30 | F18: =SUM(D18*10000+E18*100) -> 53000 | G18: 13 | H18: A43
B19: 16 | C19: ='Poule 5'!B2 -> A17 | D19: ='Poule 5'!L$30 -> 5 | E19: ='Poule 5'!L$31 -> 30 | F19: =SUM(D19*10000+E19*100) -> 53000 | G19: =RANK(F19,$F$4:$F$67,0) -> 13 | H19: A17
B20: 17 | C20: ='Poule 1'!B2 -> A31 | D20: ='Poule 1'!L$30 -> 5 | E20: ='Poule 1'!L$31 -> 28 | F20: =SUM(D20*10000+E20*100) -> 52800 | G20: 17 | H20: A31
B21: 18 | C21: ='Poule 4'!B2 -> A25 | D21: ='Poule 4'!L$30 -> 5 | E21: ='Poule 4'!L$31 -> 28 | F21: =SUM(D21*10000+E21*100) -> 52800 | G21: 17 | H21: A25
B22: 19 | C22: ='Poule 2'!B2 -> A7 | D22: ='Poule 2'!L$30 -> 5 | E22: ='Poule 2'!L$31 -> 28 | F22: =SUM(D22*10000+E22*100) -> 52800 | G22: 17 | H22: A7
B23: 20 | C23: ='Poule 3'!B2 -> A24 | D23: ='Poule 3'!L$30 -> 5 | E23: ='Poule 3'!L$31 -> 28 | F23: =SUM(D23*10000+E23*100) -> 52800 | G23: 17 | H23: A24
B24: 21 | C24: ='Poule 1'!B8 -> A18 | D24: ='Poule 1'!R$30 -> 5 | E24: ='Poule 1'!R$31 -> 22 | F24: =SUM(D24*10000+E24*100) -> 52200 | G24: 21 | H24: A18
B25: 22 | C25: ='Poule 4'!B8 -> A2 | D25: ='Poule 4'!R$30 -> 5 | E25: ='Poule 4'!R$31 -> 22 | F25: =SUM(D25*10000+E25*100) -> 52200 | G25: 21 | H25: A2
B26: 23 | C26: ='Poule 3'!B8 -> A21 | D26: ='Poule 3'!R$30 -> 5 | E26: ='Poule 3'!R$31 -> 22 | F26: =SUM(D26*10000+E26*100) -> 52200 | G26: 21 | H26: A21
B27: 24 | C27: ='Poule 2'!B8 -> A36 | D27: ='Poule 2'!R$30 -> 5 | E27: ='Poule 2'!R$31 -> 22 | F27: =SUM(D27*10000+E27*100) -> 52200 | G27: 21 | H27: A36
B28: 25 | C28: ='Poule 1'!B6 -> A4 | D28: ='Poule 1'!P$30 -> 4 | E28: ='Poule 1'!P$31 -> 15 | F28: =SUM(D28*10000+E28*100) -> 41500 | G28: 25 | H28: A4
B29: 26 | C29: ='Poule 2'!B6 -> A5 | D29: ='Poule 2'!P$30 -> 4 | E29: ='Poule 2'!P$31 -> 15 | F29: =SUM(D29*10000+E29*100) -> 41500 | G29: 25 | H29: A5
B30: 27 | C30: ='Poule 3'!B6 -> A49 | D30: ='Poule 3'!P$30 -> 4 | E30: ='Poule 3'!P$31 -> 15 | F30: =SUM(D30*10000+E30*100) -> 41500 | G30: 25 | H30: A49
B31: 28 | C31: ='Poule 4'!B6 -> A46 | D31: ='Poule 4'!P$30 -> 4 | E31: ='Poule 4'!P$31 -> 15 | F31: =SUM(D31*10000+E31*100) -> 41500 | G31: 25 | H31: A46
B32: 29 | C32: ='Poule 8'!B3 -> A32 | D32: ='Poule 8'!M$30 -> 4 | E32: ='Poule 8'!M$31 -> 7 | F32: =SUM(D32*10000+E32*100) -> 40700 | G32: 29 | H32: A32
B33: 30 | C33: ='Poule 7'!B3 -> A38 | D33: ='Poule 7'!M$30 -> 4 | E33: ='Poule 7'!M$31 -> 7 | F33: =SUM(D33*10000+E33*100) -> 40700 | G33: 29 | H33: A38
B34: 31 | C34: ='Poule 6'!B3 -> A22 | D34: ='Poule 6'!M$30 -> 4 | E34: ='Poule 6'!M$31 -> 7 | F34: =SUM(D34*10000+E34*100) -> 40700 | G34: 29 | H34: A22
B35: 32 | C35: ='Poule 5'!B3 -> A42 | D35: ='Poule 5'!M$30 -> 4 | E35: ='Poule 5'!M$31 -> 7 | F35: =SUM(D35*10000+E35*100) -> 40700 | G35: 29 | H35: A42
B36: 33 | C36: ='Poule 7'!B5 -> A27 | D36: ='Poule 7'!O$30 -> 4 | E36: ='Poule 7'!O$31 -> 6 | F36: =SUM(D36*10000+E36*100) -> 40600 | G36: 33 | H36: A27
B37: 34 | C37: ='Poule 6'!B5 -> A12 | D37: ='Poule 6'!O$30 -> 4 | E37: ='Poule 6'!O$31 -> 6 | F37: =SUM(D37*10000+E37*100) -> 40600 | G37: 33 | H37: A12
B38: 35 | C38: ='Poule 8'!B5 -> A30 | D38: ='Poule 8'!O$30 -> 4 | E38: ='Poule 8'!O$31 -> 6 | F38: =SUM(D38*10000+E38*100) -> 40600 | G38: 33 | H38: A30
B39: 36 | C39: ='Poule 5'!B5 -> A13 | D39: ='Poule 5'!O$30 -> 4 | E39: ='Poule 5'!O$31 -> 6 | F39: =SUM(D39*10000+E39*100) -> 40600 | G39: 33 | H39: A13
B40: 37 | C40: ='Poule 1'!B5 -> A11 | D40: ='Poule 1'!O$30 -> 4 | E40: ='Poule 1'!O$31 -> 0 | F40: =SUM(D40*10000+E40*100) -> 40000 | G40: 37 | H40: A11
B41: 38 | C41: ='Poule 4'!B5 -> A15 | D41: ='Poule 4'!O$30 -> 4 | E41: ='Poule 4'!O$31 -> 0 | F41: =SUM(D41*10000+E41*100) -> 40000 | G41: 37 | H41: A15
B42: 39 | C42: ='Poule 2'!B5 -> A29 | D42: ='Poule 2'!O$30 -> 4 | E42: ='Poule 2'!O$31 -> 0 | F42: =SUM(D42*10000+E42*100) -> 40000 | G42: 37 | H42: A29
B43: 40 | C43: ='Poule 3'!B5 -> A37 | D43: ='Poule 3'!O$30 -> 4 | E43: ='Poule 3'!O$31 -> 0 | F43: =SUM(D43*10000+E43*100) -> 40000 | G43: 37 | H43: A37
B44: 41 | C44: ='Poule 7'!B4 -> A23 | D44: ='Poule 7'!N$30 -> 3 | E44: ='Poule 7'!N$31 -> -7 | F44: =SUM(D44*10000+E44*100) -> 29300 | G44: 41 | H44: A23
B45: 42 | C45: ='Poule 8'!B4 -> A41 | D45: ='Poule 8'!N$30 -> 3 | E45: ='Poule 8'!N$31 -> -7 | F45: =SUM(D45*10000+E45*100) -> 29300 | G45: 41 | H45: A41
B46: 43 | C46: ='Poule 6'!B4 -> A50 | D46: ='Poule 6'!N$30 -> 3 | E46: ='Poule 6'!N$31 -> -7 | F46: =SUM(D46*10000+E46*100) -> 29300 | G46: 41 | H46: A50
B47: 44 | C47: ='Poule 5'!B4 -> A16 | D47: ='Poule 5'!N$30 -> 3 | E47: ='Poule 5'!N$31 -> -7 | F47: =SUM(D47*10000+E47*100) -> 29300 | G47: 41 | H47: A16
B48: 45 | C48: ='Poule 1'!B3 -> A44 | D48: ='Poule 1'!M$30 -> 3 | E48: ='Poule 1'!M$31 -> -8 | F48: =SUM(D48*10000+E48*100) -> 29200 | G48: 45 | H48: A44
B49: 46 | C49: ='Poule 2'!B3 -> A28 | D49: ='Poule 2'!M$30 -> 3 | E49: ='Poule 2'!M$31 -> -8 | F49: =SUM(D49*10000+E49*100) -> 29200 | G49: 45 | H49: A28
B50: 47 | C50: ='Poule 3'!B3 -> A19 | D50: ='Poule 3'!M$30 -> 3 | E50: ='Poule 3'!M$31 -> -8 | F50: =SUM(D50*10000+E50*100) -> 29200 | G50: 45 | H50: A19
B51: 48 | C51: ='Poule 4'!B3 -> A26 | D51: ='Poule 4'!M$30 -> 3 | E51: ='Poule 4'!M$31 -> -8 | F51: =SUM(D51*10000+E51*100) -> 29200 | G51: 45 | H51: A26
B52: 49 | C52: ='Poule 1'!B4 -> A1 | D52: ='Poule 1'!N$30 -> 2 | E52: ='Poule 1'!N$31 -> -26 | F52: =SUM(D52*10000+E52*100) -> 17400 | G52: 49 | H52: A1
B53: 50 | C53: ='Poule 4'!B4 -> A9 | D53: ='Poule 4'!N$30 -> 2 | E53: ='Poule 4'!N$31 -> -26 | F53: =SUM(D53*10000+E53*100) -> 17400 | G53: 49 | H53: A9
B54: 51 | C54: ='Poule 3'!B4 -> A8 | D54: ='Poule 3'!N$30 -> 2 | E54: ='Poule 3'!N$31 -> -26 | F54: =SUM(D54*10000+E54*100) -> 17400 | G54: 49 | H54: A8
B55: 52 | C55: ='Poule 2'!B4 -> A35 | D55: ='Poule 2'!N$30 -> 2 | E55: ='Poule 2'!N$31 -> -26 | F55: =SUM(D55*10000+E55*100) -> 17400 | G55: 49 | H55: A35
B56: 53 | C56: ='Poule 5'!B9 ->  | D56: ='Poule 5'!S$30 -> 0 | E56: ='Poule 5'!S$31 -> -78 | F56: =SUM(D56*10000+E56*100) -> -7800 | G56: 53
B57: 54 | C57: ='Poule 5'!B8 ->  | D57: ='Poule 5'!R$30 -> 0 | E57: ='Poule 5'!R$31 -> -78 | F57: =SUM(D57*10000+E57*100) -> -7800 | G57: 53
B58: 55 | C58: ='Poule 8'!B8 ->  | D58: ='Poule 8'!R$30 -> 0 | E58: ='Poule 8'!R$31 -> -78 | F58: =SUM(D58*10000+E58*100) -> -7800 | G58: 53
B59: 56 | C59: ='Poule 6'!B8 ->  | D59: ='Poule 6'!R$30 -> 0 | E59: ='Poule 6'!R$31 -> -78 | F59: =SUM(D59*10000+E59*100) -> -7800 | G59: 53
B60: 57 | C60: ='Poule 7'!B8 ->  | D60: ='Poule 7'!R$30 -> 0 | E60: ='Poule 7'!R$31 -> -78 | F60: =SUM(D60*10000+E60*100) -> -7800 | G60: 53
B61: 58 | C61: ='Poule 7'!B9 ->  | D61: ='Poule 7'!S$30 -> 0 | E61: ='Poule 7'!S$31 -> -78 | F61: =SUM(D61*10000+E61*100) -> -7800 | G61: 53
B62: 59 | C62: ='Poule 8'!B9 ->  | D62: ='Poule 8'!S$30 -> 0 | E62: ='Poule 8'!S$31 -> -78 | F62: =SUM(D62*10000+E62*100) -> -7800 | G62: 53
B63: 60 | C63: ='Poule 6'!B9 ->  | D63: ='Poule 6'!S$30 -> 0 | E63: ='Poule 6'!S$31 -> -78 | F63: =SUM(D63*10000+E63*100) -> -7800 | G63: 53
B64: 61 | C64: ='Poule 2'!B9 ->  | D64: ='Poule 2'!S$30 -> 0 | E64: ='Poule 2'!S$31 -> -91 | F64: =SUM(D64*10000+E64*100) -> -9100 | G64: 61
B65: 62 | C65: ='Poule 3'!B9 ->  | D65: ='Poule 3'!S$30 -> 0 | E65: ='Poule 3'!S$31 -> -91 | F65: =SUM(D65*10000+E65*100) -> -9100 | G65: 61
B66: 63 | C66: ='Poule 4'!B9 ->  | D66: ='Poule 4'!S$30 -> 0 | E66: ='Poule 4'!S$31 -> -91 | F66: =SUM(D66*10000+E66*100) -> -9100 | G66: 61
B67: 64 | C67: ='Poule 1'!B9 ->  | D67: ='Poule 1'!S$30 -> 0 | E67: ='Poule 1'!S$31 -> -91 | F67: =SUM(D67*10000+E67*100) -> -9100 | G67: 61

Sheet Poule 7 (hidden)
B1: Poule 7 | E1: Tirage | G1: NOM du joueur 1 | H1: Contre | I1: NOM du joueur 2 | J1: POINTS | L1: 1 | M1: 2 | N1: 3 | O1: 4 | P1: 5 | Q1: 6 | R1: 7 | S1: 8
A2: 1 | B2: =Tirage_poules!AG2 -> A43 | E2: 1 | F2: 8 | G2: =IFERROR(VLOOKUP(E2,$A$2:$B$9,2,0),"") -> A43 | H2: >>>> | I2: =IFERROR(VLOOKUP(F2,$A$2:$B$9,2,0),"") ->  | J2: 13 | L2: =IF($J2=13,1,0) -> 1 | S2: =IF($K2=13,1,0) -> 0
A3: 2 | B3: =Tirage_poules!AG3 -> A38 | E3: 2 | F3: 7 | G3: =IFERROR(VLOOKUP(E3,$A$2:$B$9,2,0),"") -> A38 | H3: >>>> | I3: =IFERROR(VLOOKUP(F3,$A$2:$B$9,2,0),"") ->  | J3: 13 | M3: =IF($J3=13,1,0) -> 1 | R3: =IF($K3=13,1,0) -> 0
A4: 3 | B4: =Tirage_poules!AG4 -> A23 | E4: 3 | F4: 6 | G4: A23 | H4: >>>> | I4: A20 | J4: 13 | K4: 8 | N4: =IF($J4=13,1,0) -> 1 | Q4: =IF($K4=13,1,0) -> 0
A5: 4 | B5: =Tirage_poules!AG5 -> A27 | E5: 4 | F5: 5 | G5: A27 | H5: >>>> | I5: A47 | J5: 5 | K5: 13 | O5: =IF($J5=13,1,0) -> 0 | P5: =IF($K5=13,1,0) -> 1
A6: 5 | B6: =Tirage_poules!AG6 -> A47 | E6: 1 | F6: 7 | G6: A43 | H6: >>>> | J6: 13 | L6: =IF($J6=13,1,0) -> 1 | R6: =IF($K6=13,1,0) -> 0
A7: 6 | B7: =Tirage_poules!AG7 -> A20 | E7: 6 | F7: 8 | G7: A20 | H7: >>>> | J7: 13 | Q7: =IF($J7=13,1,0) -> 1 | S7: =IF($K7=13,1,0) -> 0
A8: 7 | B8: =Tirage_poules!AG8 ->  | E8: 2 | F8: 5 | G8: A38 | H8: >>>> | I8: A47 | J8: 13 | K8: 9 | M8: =IF($J8=13,1,0) -> 1 | P8: =IF($K8=13,1,0) -> 0
A9: 8 | B9: =Tirage_poules!AG9 ->  | E9: 3 | F9: 4 | G9: A23 | H9: >>>> | I9: A27 | J9: 1 | K9: 13 | N9: =IF($J9=13,1,0) -> 0 | O9: =IF($K9=13,1,0) -> 1
E10: 1 | F10: 6 | G10: A43 | H10: >>>> | I10: A20 | J10: 1 | K10: 13 | L10: =IF($J10=13,1,0) -> 0 | Q10: =IF($K10=13,1,0) -> 1
E11: 5 | F11: 7 | G11: A47 | H11: >>>> | J11: 13 | P11: =IF($J11=13,1,0) -> 1 | R11: =IF($K11=13,1,0) -> 0
E12: 4 | F12: 8 | G12: A27 | H12: >>>> | J12: 13 | O12: =IF($J12=13,1,0) -> 1 | S12: =IF($K12=13,1,0) -> 0
E13: 2 | F13: 3 | G13: A38 | H13: >>>> | I13: A23 | J13: 13 | K13: 6 | M13: =IF($J13=13,1,0) -> 1 | N13: =IF($K13=13,1,0) -> 0
E14: 1 | F14: 5 | G14: A43 | H14: >>>> | I14: A47 | J14: 10 | K14: 13 | L14: =IF($J14=13,1,0) -> 0 | P14: =IF($K14=13,1,0) -> 1
E15: 4 | F15: 6 | G15: A27 | H15: >>>> | I15: A20 | J15: 4 | K15: 13 | O15: =IF($J15=13,1,0) -> 0 | Q15: =IF($K15=13,1,0) -> 1
E16: 3 | F16: 7 | G16: A23 | H16: >>>> | J16: 13 | N16: =IF($J16=13,1,0) -> 1 | R16: =IF($K16=13,1,0) -> 0
E17: 2 | F17: 8 | G17: A38 | H17: >>>> | J17: 13 | M17: =IF($J17=13,1,0) -> 1 | S17: =IF($K17=13,1,0) -> 0
E18: 1 | F18: 4 | G18: A43 | H18: >>>> | I18: A27 | J18: 13 | K18: 10 | L18: =IF($J18=13,1,0) -> 1 | O18: =IF($K18=13,1,0) -> 0
E19: 3 | F19: 5 | G19: A23 | H19: >>>> | I19: A47 | J19: 5 | K19: 13 | N19: =IF($J19=13,1,0) -> 0 | P19: =IF($K19=13,1,0) -> 1
E20: 2 | F20: 6 | G20: A38 | H20: >>>> | I20: A20 | J20: 0 | K20: 13 | M20: =IF($J20=13,1,0) -> 0 | Q20: =IF($K20=13,1,0) -> 1
E21: 7 | F21: 8 | H21: >>>> | R21: =IF($J21=13,1,0) -> 0 | S21: =IF($K21=13,1,0) -> 0
E22: 1 | F22: 3 | G22: A43 | H22: >>>> | I22: A23 | J22: 13 | K22: 2 | L22: =IF($J22=13,1,0) -> 1 | N22: =IF($K22=13,1,0) -> 0
E23: 2 | F23: 4 | G23: A38 | H23: >>>> | I23: A27 | J23: 1 | K23: 13 | M23: =IF($J23=13,1,0) -> 0 | O23: =IF($K23=13,1,0) -> 1
E24: 5 | F24: 8 | G24: A47 | H24: >>>> | J24: 13 | P24: =IF($J24=13,1,0) -> 1 | S24: =IF($K24=13,1,0) -> 0
E25: 6 | F25: 7 | G25: A20 | H25: >>>> | J25: 13 | Q25: =IF($J25=13,1,0) -> 1 | R25: =IF($K25=13,1,0) -> 0
E26: 1 | F26: 2 | G26: A43 | H26: >>>> | I26: A38 | J26: 13 | K26: 8 | L26: =IF($J26=13,1,0) -> 1 | M26: =IF($K26=13,1,0) -> 0
E27: 3 | F27: 8 | G27: A23 | H27: >>>> | J27: 13 | N27: =IF($J27=13,1,0) -> 1 | S27: =IF($K27=13,1,0) -> 0
E28: 4 | F28: 7 | G28: A27 | H28: >>>> | J28: 13 | O28: =IF($J28=13,1,0) -> 1 | R28: =IF($K28=13,1,0) -> 0
E29: 5 | F29: 6 | G29: A47 | H29: >>>> | I29: A20 | J29: 10 | K29: 13 | P29: =IF($J29=13,1,0) -> 0 | Q29: =IF($K29=13,1,0) -> 1
J30: Total Points | L30: =SUM(L2:L29) -> 5 | M30: =SUM(M2:M29) -> 4 | N30: 3 | O30: 4 | P30: 5 | Q30: 6 | R30: 0 | S30: 0
J31: Diff points | L31: =(J2+J6+J10+J14+J18+J22+J26)-(K2+K6+K10+K14+K18+K22+K26) -> 30 | M31: =(J3+J8+J13+J17+J20+J23+K26)-(K3+K8+K13+K17+K20+K23+J26) -> 7 | N31: =(J4+J9+K13+J16+J19+K22+J27)-(K4+K9+J13+K16+K19+J22+K27) -> -7 | O31: =(J5+K9+J12+J15+K18+J23+J28)-(K5+J9+K12+K15+J18+K23+K28) -> 6 | P31: =(K5+K8+J11+K14+K19+J24+J29)-(J5+J8+K11+J14+J19+K24+K29) -> 38 | Q31: =(K4+J7+K10+K15+K20+J25+K29)-(J4+K7+J10+J15+J20+K25+J29) -> 58 | R31: =(K6+K11+K16+J21+K25+K28+K3)-(J3+J6+J11+J16+K21+J25+J28) -> -78 | S31: =(K2+K7+K12+K17+K21+K24+K27)-(J2+J7+J12+J17+J21+J24+J27) -> -78
